Cogmind - Beta 14 @@@ ROGUE MODE // 2024.09.19 @ 22:34:43 Player: Omega Result: Destroyed by G-67 Veteran with Field Laser Performance ------------- Evolutions (5) 2500 Regions Visited (10) 2000 Robots Destroyed (56) 280 Value Destroyed (1267) 1267 Prototype IDs (5) 100 Alien Tech Used (0) 0 Bonus (1829) 1829 TOTAL SCORE: 7976 Bonus ------- High Alert Combat Kills 89 Entered DSFs 500 Met Warlord at Base 500 MAIN.C Attacked Warlord 500 Warlord Defense Kills 240 Cogmind --------- Core Integrity 0/1000 Matter 300/300 Energy 515/515 System Corruption 0% Temperature Cool (59) Movement Walking (120) Location -5/Warlord Parts ------- > --- POWER (3) -------- Backup Power III Improved Deuterium Engine Reinforced Antimatter Reactor > --- PROPULSION (5) --- Carbon-fiber Leg Flexi-carbon Leg Flexi-carbon Leg Flexi-carbon Leg Flexi-carbon Leg > --- UTILITY (6) ------ Improved Heat Sink Advanced Targeting Computer Backup Plating III Backup Plating III Improved Focal Shield Point Defense System > --- WEAPON (3) ------- Backup Laser III Backup Laser III Heavy Beamcaster > --- INVENTORY (5) ---- Advanced Targeting Computer Improved Field Recycling Unit (0) Self-destruct Interrupter (50) Peak State ------------ > --- POWER ------------ Backup Power III Improved Deuterium Engine Reinforced Antimatter Reactor > --- PROPULSION ------- Carbon-fiber Leg Flexi-carbon Leg Flexi-carbon Leg Flexi-carbon Leg Flexi-carbon Leg > --- UTILITY ---------- Improved Heat Sink Advanced Targeting Computer Backup Plating III Backup Plating III Improved Focal Shield Point Defense System > --- WEAPON ----------- Backup Laser III Backup Laser III Heavy Beamcaster > --- INVENTORY -------- Advanced Targeting Computer Improved Field Recycling Unit Self-destruct Interrupter [Rating: 74] Favorites ----------- Power Light Ion Engine Engine Light Ion Engine Power Core Micro Nuclear Core Reactor Reinforced Antimatter Reactor Propulsion Flight Unit Treads Light Treads Leg VSS Leg Hover Unit Backup Propulsion III Flight Unit Flight Unit Utility Advanced Targeting Computer Device Weight Redist. System Storage Small Storage Unit Processor Advanced Targeting Computer Protection Backup Plating III Weapon Backup Laser III Energy Gun Backup Laser III Energy Cannon Phase Cannon Ballistic Gun Enhanced Autogun Ballistic Cannon Gauss Cannon Build | -11 -10 -9 -8 -7 -7 -6 -5 -5 -5 -5 ------- Run | Yrd Mat Mat Mat Fac DSF Fac Fac Upp Upp War Slots Evolved 10 | . . 2 2 2 . 2 2 . . . Power 2 | . . . 1 . . 1 . . . . Propulsion 3 | . . 1 1 . . . 1 . . . Utility 4 | . . 1 . 1 . 1 1 . . . Weapon 1 | . . . . 1 . . . . . . Parts Attached 116 | 6 7 11 30 9 10 9 7 3 6 18 Power 22 | 1 1 . 7 . 3 1 3 . 2 4 Engine 12 | 1 1 . 7 . . . 2 . . 1 Core 9 | . . . . . 3 1 1 . 2 2 Reactor 1 | . . . . . . . . . . 1 Propulsion 47 | 2 3 6 13 6 5 4 . . 1 7 Treads 1 | . . . . . . . . . 1 . Leg 25 | 2 . . 9 3 5 . . . . 6 Wheel . | . . . . . . . . . . . Hover 7 | . 3 3 . . . . . . . 1 Flight 14 | . . 3 4 3 . 4 . . . . Utility 25 | 1 2 2 3 2 2 2 2 1 2 6 Device 14 | . 2 1 1 2 . 1 1 . 1 5 Storage 1 | 1 . . . . . . . . . . Processor 4 | . . . . . 1 1 1 . . 1 Hackware . | . . . . . . . . . . . Protection 6 | . . 1 2 . 1 . . 1 1 . Artifact . | . . . . . . . . . . . Weapon 22 | 2 1 3 7 1 . 2 2 2 1 1 Energy Gun 10 | 2 1 3 1 . . . 1 1 . 1 Energy Cannon 7 | . . . 1 1 . 2 1 1 1 . Ballistic Gun 2 | . . . 2 . . . . . . . Ballistic Cannon 3 | . . . 3 . . . . . . . Launcher . | . . . . . . . . . . . Special Weapon . | . . . . . . . . . . . Impact Weapon . | . . . . . . . . . . . Slashing Weapon . | . . . . . . . . . . . Piercing Weapon . | . . . . . . . . . . . Special Melee Weapon . | . . . . . . . . . . . Unidentified Prototypes 3 | . . . 1 1 . 1 . . . . Parts Lost 49 | . 1 2 16 . 14 . 3 1 10 2 Power 14 | . . . 5 . 4 . 1 1 2 1 Propulsion 16 | . 1 2 5 . 5 . . . 2 1 Utility 12 | . . . 3 . 4 . 1 . 4 . Weapon 7 | . . . 3 . 1 . 1 . 2 . Highest Loss Streak 13 | . 1 2 5 . 13 . 3 1 9 2 To Critical Strikes . | . . . . . . . . . . . Average Slot Usage (%) 53 | . 90 93 67 66 60 31 34 23 18 52 Engine 7 | . 14 11 7 15 8 . 6 1 . 8 Leg 5 | . 1 . 10 28 23 . . . . 2 Hover 4 | . 25 9 . . . . . . . 8 Flight 6 | . . 21 14 . . 12 9 5 2 . Device 7 | . 7 22 15 13 11 3 . . . 4 Processor 3 | . . . . . 5 6 7 11 6 3 Protection 4 | . . 6 8 . . . . . . 9 Energy Gun 7 | . 28 22 1 . . . 4 1 2 10 Energy Cannon 1 | . . . . 7 5 3 . 2 . . Ballistic Cannon 1 | . . . 7 . . . . . . . Peak Build Rating 74 | 6 7 15 26 31 35 27 35 25 32 74 Average Rating 21 | 4 6 11 17 26 27 21 26 18 14 31 On Entrance 12 | . 6 6 15 18 28 6 21 16 21 . Naked Turns 184 | . . . . . . . . . 63 121 Heaviest Build 54 | 12 13 13 20 19 22 16 21 11 21 54 Greatest Support 95 | 20 20 18 48 48 78 10 10 5 20 95 Greatest Overweight (x) 7 | . 1 2 3 3 7 2 4 2 6 2 Average Overweight (x) . | . . . . . 1 . . . . . Largest Inventory Capacity 8 | 8 8 5 5 5 5 5 5 5 5 5 Average Capacity 5 | 6 7 5 5 5 5 5 5 5 5 5 Most Carried 8 | 4 8 5 5 5 5 4 5 5 5 5 Average Carried 3 | 2 6 3 3 4 4 2 4 4 2 3 Final Capacity 8 | 8 5 5 5 5 5 5 5 5 5 5 Final Carried 5 | 4 4 5 2 5 4 4 5 5 1 3 Class Distribution -------------------- 77% | Mutant 11% | Scavenger-Mutant 5% | Sprinter 3% | Scavenger-Tank Dominant Class ---------------- Mutant | -10/Materials Mutant | -9/Materials Mutant | -8/Materials Mutant | -7/Factory Mutant | -7/DSF Sprinter | -6/Factory Mutant | -5/Factory Mutant | -5/Upper Caves Mutant | -5/Upper Caves Mutant | -5/Warlord Resources | -11 -10 -9 -8 -7 -7 -6 -5 -5 -5 -5 ----------- Run | Yrd Mat Mat Mat Fac DSF Fac Fac Upp Upp War Matter Collected 1881 | 260 47 115 775 70 90 . 146 168 33 177 Remotely . | . . . . . . . . . . . Salvage Created 1731 | 158 122 368 740 . 74 . 80 . 90 99 Parts 104 | 5 6 26 48 . 6 . 10 . 2 1 Haulers Intercepted 4 | . . 2 2 . . . . . . . Recyclers Shooed 5 | . 1 . 4 . . . . . . . Parts Field Recycled . | . . . . . . . . . . . Retrieved Matter . | . . . . . . . . . . . Parts Self-Destructed 3 | . . . . . . . . . 3 . Prevented . | . . . . . . . . . . . Kills | -11 -10 -9 -8 -7 -7 -6 -5 -5 -5 -5 ------- Run | Yrd Mat Mat Mat Fac DSF Fac Fac Upp Upp War Combat Hostiles Destroyed 34 | . 5 7 19 . 1 . . . 1 1 Guns 16 | . 5 7 4 . . . . . . . Cannons 14 | . . . 13 . 1 . . . . . AOE 1 | . . . 1 . . . . . . . Classes Destroyed 13 | 3 2 2 3 . 1 . . . 1 1 Worker 8 | 2 . . 3 . . . 3 . . . Builder 3 | . . . 2 . . . 1 . . . Tunneler 2 | 2 . . . . . . . . . . Hauler 4 | . . 2 2 . . . . . . . Recycler 4 | 1 . . 3 . . . . . . . Watcher 1 | . . . 1 . . . . . . . Swarmer 14 | . 3 3 8 . . . . . . . Grunt 11 | . 2 2 7 . . . . . . . Brawler 1 | . . . . . . . . . 1 . Sentry 5 | . . 2 3 . . . . . . . Specialist 1 | . . . . . 1 . . . . . Hunter 1 | . . . 1 . . . . . . . Executioner 1 | . . . . . . . . . . 1 Best Kill Streak 8 | 4 3 3 8 . 1 . 4 . 1 1 Combat Bots Only 6 | . 3 3 6 . 1 . . . 1 1 Max Kills in Single Turn 2 | 2 1 1 2 . 1 . 1 . 1 1 Gunslinging . | . . . . . . . . . . . Exploded 1 | . . . 1 . . . . . . . Melee . | . . . . . . . . . . . Uniques/NPCs Destroyed . | . . . . . . . . . . . Combat | -11 -10 -9 -8 -7 -7 -6 -5 -5 -5 -5 -------- Run | Yrd Mat Mat Mat Fac DSF Fac Fac Upp Upp War Hostile Shots Fired 571 | . 27 40 218 . 121 . 45 9 96 15 Missed 161 | . 8 21 59 . 25 . 11 4 28 5 Damage Taken 6973 | 34 216 242 2197 . 1798 . 662 95 1415 314 Core 1850 | . 66 58 300 . 420 . 175 76 647 108 Absorbed by Shields 126 | . . . . . 126 . . . . . Ignored by Resistances 134 | . . . . . 134 . . . . . Regen/Repaired (Parts) 30 | . . . . . . 30 . . . . Core Remaining (%) 73 | 100 73 85 45 . 40 100 . . . . Volleys Fired 233 | 13 17 32 121 . 11 . 13 . 15 11 Largest 3 | 2 2 2 2 . 1 . 1 . 1 3 Hottest 161 | 90 100 100 73 . 80 . 75 . 85 161 Shots Fired 316 | 18 34 51 147 . 11 . 13 . 15 27 Gun 204 | 18 34 51 52 . . . 13 . 9 27 Cannon 112 | . . . 95 . 11 . . . 6 . Launcher . | . . . . . . . . . . . Special . | . . . . . . . . . . . Kinetic 123 | . . . 123 . . . . . . . Thermal 160 | 13 34 32 24 . 11 . 13 . 6 27 Explosive . | . . . . . . . . . . . Electromagnetic 33 | 5 . 19 . . . . . . 9 . Robot Hit Streak 13 | 6 7 12 8 . 4 . 4 . 9 13 Robot Miss Streak 5 | 2 2 3 5 . 1 . 2 . 1 1 Penetration Max 1 | . . . 1 . . . . . . . Secondary Targets 1 | . . 1 . . . . . . . . Max Gunslinging Chain 1 | . . 1 . . . . . . . . Shots Hit Robots 215 | 13 20 37 92 . 8 . 8 . 14 23 Core Hits 86 | 6 7 17 41 . 1 . 4 . 3 7 Critical Kills . | . . . . . . . . . . . Critical Parts Destroyed . | . . . . . . . . . . . Critical Strikes 17 | 1 . 1 14 . . . . . . 1 Burn 5 | 1 . . 3 . . . . . . 1 Blast 11 | . . . 11 . . . . . . . Corrupt 1 | . . 1 . . . . . . . . Melee Attacks . | . . . . . . . . . . . Impact . | . . . . . . . . . . . Slashing . | . . . . . . . . . . . Piercing . | . . . . . . . . . . . Sneak Attacks . | . . . . . . . . . . . Combat Hostiles . | . . . . . . . . . . . Follow-up Attacks . | . . . . . . . . . . . Damage Inflicted 4676 | 251 266 462 2534 . 205 . 222 . 328 408 Guns 2169 | 167 263 462 512 . . . 222 . 135 408 Cannons 2221 | . . . 1823 . 205 . . . 193 . Explosions 283 | 84 . . 199 . . . . . . . Melee . | . . . . . . . . . . . Ramming 3 | . 3 . . . . . . . . . Kinetic 2060 | . . . 2060 . . . . . . . Thermal 2236 | 197 263 274 474 . 205 . 222 . 193 408 Explosive . | . . . . . . . . . . . Electromagnetic 377 | 54 . 188 . . . . . . 135 . Impact . | . . . . . . . . . . . Slashing . | . . . . . . . . . . . Piercing . | . . . . . . . . . . . Highest Corruption 12 | . . . . . . . . . 11 12 Average Corruption 10 | . . . . . . . . . 10 11 Corruption Purged . | . . . . . . . . . . . Corruption Blocked . | . . . . . . . . . . . Effects 6 | . . . . . . . . . 3 3 Message Errors 1 | . . . . . . . . . . 1 Matter Fused 2 | . . . . . . . . . 1 1 Heat Flow Errors 3 | . . . . . . . . . 2 1 Overload Shots . | . . . . . . . . . . . Overflow Damage 208 | 8 . . 200 . . . . . . . Projectiles 35 | . . . 35 . . . . . . . Explosions 173 | 8 . . 165 . . . . . . . Melee . | . . . . . . . . . . . Knockbacks 15 | . . . 15 . . . . . . . Impact . | . . . . . . . . . . . Kinetic 15 | . . . 15 . . . . . . . Secondary . | . . . . . . . . . . . Self-Inflicted Damage 134 | 35 1 . 98 . . . . . . . Shots 2 | 1 . . 1 . . . . . . . Rammed 1 | . 1 . . . . . . . . . Targets Rammed 1 | . 1 . . . . . . . . . Kicked . | . . . . . . . . . . . Crushed . | . . . . . . . . . . . Highest Temperature 432 | 90 270 207 432 . 2 . 73 . 225 291 Average Temperature 95 | 39 98 51 126 . 2 . 16 . 52 105 Received Heat Transfer 2000 | . 84 162 792 . 179 . 81 45 630 27 Effects 6 | . . . 6 . . . . . . . Shutdowns 2 | . . . 2 . . . . . . . Energy Bleed 2 | . . . 2 . . . . . . . Matter Decay 1 | . . . 1 . . . . . . . Short Circuit 1 | . . . 1 . . . . . . . Siege Activations . | . . . . . . . . . . . Robots Corrupted . | . . . . . . . . . . . Combat Hostiles . | . . . . . . . . . . . Parts Fried 1 | . . 1 . . . . . . . . Impact Corruptions . | . . . . . . . . . . . Robots Melted 3 | . . . 1 . . . . . 1 1 Combat Hostiles 3 | . . . 1 . . . . . 1 1 Parts Melted 15 | 2 3 1 1 . . . 1 . . 7 Heat Transferred 5053 | 507 777 814 1038 . 400 . 333 . 222 962 Parts Sabotaged . | . . . . . . . . . . . Parts Stolen . | . . . . . . . . . . . Parts Stripped . | . . . . . . . . . . . Power Chain Reactions 1 | 1 . . . . . . . . . . Alert | -11 -10 -9 -8 -7 -7 -6 -5 -5 -5 -5 ------- Run | Yrd Mat Mat Mat Fac DSF Fac Fac Upp Upp War Peak Influence 684 | 25 176 315 684 306 254 214 229 . . . Initial 301 | . 16 69 132 301 214 72 104 . . . Average 237 | 7 78 223 396 301 220 157 150 . . . Maximum Alert Level 2 | . . 1 2 1 1 1 1 . . . Low Security (%) 48 | 100 100 29 10 . 18 90 92 . . . Level 1 37 | . . 70 44 100 81 9 7 . . . Level 2 14 | . . . 45 . . . . . . . Level 3 . | . . . . . . . . . . . Level 4 . | . . . . . . . . . . . Level 5 . | . . . . . . . . . . . High Security . | . . . . . . . . . . . Max Security . | . . . . . . . . . . . Squads Dispatched 9 | . . . 5 . 1 1 2 . . . Investigation 3 | . . . 1 . . . 2 . . . Extermination . | . . . . . . . . . . . Reinforcement 4 | . . . 2 . 1 1 . . . . Assault . | . . . . . . . . . . . Garrison 2 | . . . 2 . . . . . . . Intercept . | . . . . . . . . . . . Searches Triggered . | . . . . . . . . . . . Construction Impeded 1 | . . . 1 . . . . . . . Haulers Reinforced . | . . . . . . . . . . . Active Scanning Responses . | . . . . . . . . . . . Cargo Convoy Interrupts . | . . . . . . . . . . . Stealth | -11 -10 -9 -8 -7 -7 -6 -5 -5 -5 -5 --------- Run | Yrd Mat Mat Mat Fac DSF Fac Fac Upp Upp War Distress Signals 6 | . 2 . 1 . . 1 1 . . 1 Communications Jammed . | . . . . . . . . . . . Distress Signals . | . . . . . . . . . . . Times Spotted 110 | . 9 8 39 . 5 6 7 5 9 22 Peak Tracking Total 10 | . 4 5 10 . 4 4 4 7 4 8 Tactical Retreats 14 | . 1 1 4 . 2 1 1 1 3 . Traps | -11 -10 -9 -8 -7 -7 -6 -5 -5 -5 -5 ------- Run | Yrd Mat Mat Mat Fac DSF Fac Fac Upp Upp War Traps Triggered 6 | . . . . . 3 2 . . . 1 Indirectly . | . . . . . . . . . . . Trap Hack Attempts . | . . . . . . . . . . . Triggered . | . . . . . . . . . . . Disarmed . | . . . . . . . . . . . Reprogrammed . | . . . . . . . . . . . Reused . | . . . . . . . . . . . Traps Extracted . | . . . . . . . . . . . Installed . | . . . . . . . . . . . Triggered 8 | . . . . . . . . . . 8 Machines | -11 -10 -9 -8 -7 -7 -6 -5 -5 -5 -5 ---------- Run | Yrd Mat Mat Mat Fac DSF Fac Fac Upp Upp War Machines Disabled 3 | . . . 3 . . . . . . . Max in Single Turn 2 | . . . 2 . . . . . . . Machines Repaired . | . . . . . . . . . . . Machines Dismantled . | . . . . . . . . . . . Machines Sabotaged . | . . . . . . . . . . . Overloaded Fab Kills . | . . . . . . . . . . . Hacking | -11 -10 -9 -8 -7 -7 -6 -5 -5 -5 -5 --------- Run | Yrd Mat Mat Mat Fac DSF Fac Fac Upp Upp War Machines Accessed 19 | . 1 1 6 1 . 4 2 1 . 3 Terminals 12 | . 1 1 6 1 . 2 1 . . . Fabricators . | . . . . . . . . . . . Repair Stations 3 | . . . . . . 2 1 . . . Recycling Units . | . . . . . . . . . . . Scanalyzers . | . . . . . . . . . . . Garrison Access . | . . . . . . . . . . . Total Hacks 69 | . 2 7 23 2 . 11 6 6 . 12 Successful 49 | . 1 5 15 1 . 5 4 6 . 12 Failed 20 | . 1 2 8 1 . 6 2 . . . Catastrophic . | . . . . . . . . . . . Database Lockouts . | . . . . . . . . . . . Manual 16 | . 2 1 13 . . . . . . . Terminals 42 | . 2 7 23 2 . 5 3 . . . Fabricators . | . . . . . . . . . . . Repair Stations 9 | . . . . . . 6 3 . . . Recycling Units . | . . . . . . . . . . . Scanalyzers . | . . . . . . . . . . . Garrison Access . | . . . . . . . . . . . Terminal Hacks 34 | . . 4 7 1 . 2 2 6 . 12 Record 22 | . . . 1 . . 2 1 6 . 12 Prototype ID Bank 1 | . . . 1 . . . . . . . Open DSF 1 | . . . . 1 . . . . . . Emergency Access Points 1 | . . . . . . . 1 . . . Alert Level 1 | . . . 1 . . . . . . . Dispatch Records 1 | . . 1 . . . . . . . . Security Status 1 | . . 1 . . . . . . . . Transport Status 1 | . . 1 . . . . . . . . Recall Investigation 2 | . . . 2 . . . . . . . Recall Reinforcements 1 | . . . 1 . . . . . . . Hauler Manifests 1 | . . . 1 . . . . . . . Zone Layout 1 | . . 1 . . . . . . . . Fabricator Hacks . | . . . . . . . . . . . Repair Station Hacks 5 | . . . . . . 3 2 . . . Scan Component 4 | . . . . . . 2 2 . . . Repair 1 | . . . . . . 1 . . . . Recycling Unit Hacks . | . . . . . . . . . . . Scanalyzer . | . . . . . . . . . . . Garrison Access Hacks . | . . . . . . . . . . . Unauthorized Hacks 10 | . 1 1 8 . . . . . . . Terminals 10 | . 1 1 8 . . . . . . . Assimilate 2 | . . . 2 . . . . . . . Botnet 8 | . 1 1 6 . . . . . . . Fabricators . | . . . . . . . . . . . Repair Stations . | . . . . . . . . . . . Recycling Units . | . . . . . . . . . . . Scanalyzers . | . . . . . . . . . . . Garrison Access . | . . . . . . . . . . . Data Cores Recovered . | . . . . . . . . . . . Used . | . . . . . . . . . . . Hacking Detections 12 | . 1 1 4 . . 4 2 . . . Full Trace Events 3 | . . . 1 . . . 2 . . . Feedback Events . | . . . . . . . . . . . Feedback Blocked . | . . . . . . . . . . . Robot Schematics Acquired . | . . . . . . . . . . . Robots Built . | . . . . . . . . . . . Authchips . | . . . . . . . . . . . Time . | . . . . . . . . . . . Total Robot Build Rating . | . . . . . . . . . . . Part Schematics Acquired . | . . . . . . . . . . . Parts Built . | . . . . . . . . . . . Authchips . | . . . . . . . . . . . Time . | . . . . . . . . . . . Total Part Build Rating . | . . . . . . . . . . . Parts Repaired 1 | . . . . . . 1 . . . . Time 44 | . . . . . . 44 . . . . Parts Recycled . | . . . . . . . . . . . Recycled Matter . | . . . . . . . . . . . Retrieved Matter . | . . . . . . . . . . . Retrieved Components . | . . . . . . . . . . . Parts Scanalyzed . | . . . . . . . . . . . Part Schematics Acquired . | . . . . . . . . . . . Parts Damaged . | . . . . . . . . . . . Bothacking | -11 -10 -9 -8 -7 -7 -6 -5 -5 -5 -5 ------------ Run | Yrd Mat Mat Mat Fac DSF Fac Fac Upp Upp War Used RIF Installer . | . . . . . . . . . . . Robots Hacked . | . . . . . . . . . . . Non-combat . | . . . . . . . . . . . Combat . | . . . . . . . . . . . Robot Hacks Applied . | . . . . . . . . . . . Relay Couplers Released . | . . . . . . . . . . . Fabnet Peak Effective % . | . . . . . . . . . . . Robots Rewired . | . . . . . . . . . . . Allies Hacked . | . . . . . . . . . . . Hacks Repelled . | . . . . . . . . . . . Allies | -11 -10 -9 -8 -7 -7 -6 -5 -5 -5 -5 -------- Run | Yrd Mat Mat Mat Fac DSF Fac Fac Upp Upp War Total Allies 1 | . . . . . . . . . 1 . Largest Group 1 | . . . . . . . . . 1 . Highest-Rated Group 146 | . . . . . . . . . 146 . Highest-Rated Ally 146 | . . . . . . . . . 146 . Total Orders . | . . . . . . . . . . . Ally Attacks . | . . . . . . . . . . . Total Damage . | . . . . . . . . . . . Kills . | . . . . . . . . . . . Allies Corrupted . | . . . . . . . . . . . Allies Melted 1 | . . . . . . . . . . 1 Intel | -11 -10 -9 -8 -7 -7 -6 -5 -5 -5 -5 ------- Run | Yrd Mat Mat Mat Fac DSF Fac Fac Upp Upp War Robot Analysis Total . | . . . . . . . . . . . Derelict Logs Recovered 4 | . . . . . . . . 3 1 . Drone Launches 2 | . . . . . . . 2 . . . Drone Recoveries 2 | . . . . . . . 2 . . . Exploration | -11 -10 -9 -8 -7 -7 -6 -5 -5 -5 -5 ------------- Run | Yrd Mat Mat Mat Fac DSF Fac Fac Upp Upp War Turns Passed 3760 | 117 242 295 722 175 148 171 451 320 265 854 Spaces Moved 3691 | 65 202 372 580 105 71 219 445 603 365 664 Core 332 | 6 . . 5 . 13 . . . 70 238 Treads 5 | . . . . . . . . . 5 . Legs 437 | 59 7 . 159 102 58 . . . . 52 Wheels . | . . . . . . . . . . . Hover 652 | . 195 83 . . . . . . . 374 Flight 2265 | . . 289 416 3 . 219 445 603 290 . Fastest Speed 31 | 50 56 34 31 90 100 32 32 35 35 50 Average Speed 66 | 113 75 39 60 149 137 50 91 52 47 72 Slowest Speed 350 | 120 120 200 200 260 300 165 295 165 350 260 Overloaded Moves . | . . . . . . . . . . . Propulsion Burnouts . | . . . . . . . . . . . Robots Hopped 2 | . . 2 . . . . . . . . Cave-ins Triggered . | . . . . . . . . . . . Exploration Rate (%) 35 | 6 35 28 56 2 55 8 15 67 44 69 Regions Visited 10 Branch Regions 3 Pre-discovered Areas . | . . . . . . . . . . . Known Exits Taken 3 | . . . . 1 . . . 1 1 . Unknown Exits Taken 6 | 1 1 1 1 . . 1 1 . . . Scrap Searched 3 | . . . . . . . . 3 . . Spaces Dug . | . . . . . . . . . . . Terrain Destroyed 85 | 3 . . 82 . . . . . . . Melee . | . . . . . . . . . . . Projectile 35 | . . . 35 . . . . . . . AOE 50 | 3 . . 47 . . . . . . . Terrain Rammed . | . . . . . . . . . . . Walls Destroyed . | . . . . . . . . . . . Machines Disabled . | . . . . . . . . . . . Actions | -11 -10 -9 -8 -7 -7 -6 -5 -5 -5 -5 --------- Run | Yrd Mat Mat Mat Fac DSF Fac Fac Upp Upp War Total 4667 | 87 258 465 812 124 108 277 475 608 440 1013 Wait 534 | . 18 42 60 . 3 44 3 . 55 309 Move 3677 | 64 201 367 579 104 70 218 444 602 364 664 Hop 2 | . . 2 . . . . . . . . Pick Up 27 | 4 5 4 4 3 . 3 1 . . 3 Fast Attach 90 | 6 5 7 24 6 9 7 7 2 2 15 Attach 25 | . 2 4 5 3 1 2 . 1 4 3 Detach 14 | . . 2 . 4 . 1 2 2 . 3 Swap 1 | . . . 1 . . . . . . . Drop 53 | . 9 5 18 4 4 2 5 1 . 5 Fire 233 | 13 17 32 121 . 11 . 13 . 15 11 Melee . | . . . . . . . . . . . Ram 1 | . 1 . . . . . . . . . Kick . | . . . . . . . . . . . Crush . | . . . . . . . . . . . Escape Stasis 10 | . . . . . 10 . . . . . Rewire . | . . . . . . . . . . . Trap . | . . . . . . . . . . . Miscellaneous . | . . . . . . . . . . . Route ------- -11/Scrapyard -10/Materials (discovered 2 exits: *Mat / [*Min]) -9/Materials -8/Materials -7/Factory -7/DSF -6/Factory -5/Factory (discovered 2 exits: [*Fac] / *Upp) -5/Upper Caves -5/Upper Caves -5/Warlord (discovered 1 exit: [*Pro]) History --------- Turn | Location | Event 7 | -11/Scrapyard | Discovered new exit (range 14) 118 | -11/Scrapyard | Entered Materials 270 | -10/Materials | Discovered new exit (range 16) 307 | -10/Materials | Build established: Mutant 323 | -10/Materials | Discovered new exit (range 16) 360 | -10/Materials | Entered another Materials area 360 | -9/Materials | Evolved 2 slots: Propulsion x1, Utility x1 619 | -9/Materials | Discovered new exit (range 5) 655 | -9/Materials | Entered another Materials area 655 | -8/Materials | Evolved 2 slots: Power x1, Propulsion x1 861 | -8/Materials | Lost 4 parts (1p3n) 1164 | -8/Materials | Lost 3 parts (2p1n) 1213 | -8/Materials | Garrison activated, responded to threat 1262 | -8/Materials | Lost 5 parts (1p1n1u2w) 1331 | -8/Materials | Core integrity fell below 50% 1366 | -8/Materials | Discovered new exit (range 14) 1377 | -8/Materials | Entered Factory 1377 | -7/Factory | Evolved 2 slots: Utility x1, Weapon x1 1550 | -7/Factory | Identified exit to DSF 1552 | -7/Factory | Entered DSF 1589 | -7/DSF | Additional patrols routed to DSF 1630 | -7/DSF | Discovered new exit (range 16) 1695 | -7/DSF | Core integrity fell below 50% 1700 | -7/DSF | Entered Factory 1700 | -6/Factory | Evolved 2 slots: Power x1, Utility x1 1731 | -6/Factory | Lost 13 parts (4p4n4u1w) 1811 | -6/Factory | Repaired Mic. Nuclear Core 1865 | -6/Factory | Discovered new exit (range 6) 1871 | -6/Factory | Entered another Factory area 1871 | -5/Factory | Evolved 2 slots: Propulsion x1, Utility x1 2262 | -5/Factory | Discovered new exit (range 15) 2318 | -5/Factory | Discovered new exit (range 16) 2322 | -5/Factory | Entered Upper Caves 2347 | -5/Upper Caves | Lost 3 parts (1p1u1w) 2452 | -5/Upper Caves | Encountered a Warlord checkpoint 2526 | -5/Upper Caves | Identified exit to Upper Caves 2568 | -5/Upper Caves | Learned Extension trap positions 2568 | -5/Upper Caves | Learned Factory terminal intel 2642 | -5/Upper Caves | Entered another Upper Caves area 2643 | -5/Upper Caves | Identified exit to Warlord 2687 | -5/Upper Caves | Spotted B-75 Beast 2726 | -5/Upper Caves | Learned Factory terminal intel 2801 | -5/Upper Caves | System corruption reached 10% 2805 | -5/Upper Caves | Core integrity fell below 50% 2836 | -5/Upper Caves | Core integrity fell below 20% 2843 | -5/Upper Caves | Lost 9 parts (1p2n4u2w) 2907 | -5/Upper Caves | Entered Warlord 2936 | -5/Warlord | Discovered new exit (range 9) 2963 | -5/Warlord | System corruption cleaned by Quarantine Array 3163 | -5/Warlord | Met Warlord 3188 | -5/Warlord | Warlord's base attacked by MAIN.C 3538 | -5/Warlord | Warlord forces counterattacked 3636 | -5/Warlord | Spotted Executioner 3636 | -5/Warlord | Spotted B-75 Beast 3650 | -5/Warlord | Spotted B-86 Titan 3660 | -5/Warlord | Spotted Executioner 3667 | -5/Warlord | Destroyed Executioner 3695 | -5/Warlord | Lost 16 allies 3761 | -5/Warlord | Destroyed by G-67 Veteran with Field Laser Last Messages --------------- through caves, arriving soon. Acquired Flexi-carbon Leg. Acquired 20 matter. ANNOUNCEMENT: Detected 1 Swarmer squad, 3 Grunt squads, with prototype support. Acquired Carbon-fiber Leg. Acquired 10 matter. Acquired Flexi-carbon Leg. Acquired 20 matter. Dropped Carbon-fiber Leg. Acquired Flexi-carbon Leg. Acquired Point Defense System. Acquired Imp. Deuterium Engine. Acquired 30 matter. Dropped Rnf. Fission Core. Acquired Rnf. Antimatter Reactor. Acquired 20 matter. G-50 Soldier critical meltdown. PT-1WX(g) suffers critical hit (Burn). PT-1WX(g) destroyed. Map ----- +----------------------------------------------------+ | #?????????????????????????????????? | | #???????????####??????????????????? | | #??????????## ##????????#####????? | | ########?????????## #???????## ###??? | | ?????????????????# #??????## ##?? | | #????????????????# ##?????## < #?? | | ##???????????????# #?????# #?? | | #???????????????# ##????# #??? | | ##???????????????## #????# #???? | | #?????????????????### ##????# #???? | | #???????????????????## #?????# #????? | | ##???????????????????## #???### #?????? | | #????????????????????# ##### ###???? | | ##????????????????????# ###?? | | #?????????????????????## """ ### ##? | | #??????????????????????#" ##?# #? | | #????#""???????????????#""" "#?# #? | | ?????#""#???????????##?## " #?# ##? | | ?????#""#??????????# #??#### ^### #?? | | #??###""#????????## #??????## ### ##? | | #### #""#####?#### ##???????## #### #? | | ! # *!""!!= ###!* ####?????## ### ##? | | *! ["" !* !! != """#??????# ; ##?? | | ==!*=="%%!!%%=!!%% *"###### ; g ##??? | | !*%=%%|%*=!![%*= %% %![!%#[]!;; =g= #???? | | %=/!![%!%%%%%=%%= %!]=!%=@%!! %g!%= #??? | | ==%!%=%[!!=%[=%%%[%%[=%=*%!*! %!;;# #??? | | !%!%!! %%=%%*=%[* *!!=##== !%;# # #??? | | ==""%=!!**%[*% %=##?## !##??# #??? | | # =="" *[[=%= = "#???# #??## ??? | | # !=""] ###% #;#####???# ##?? # #?? | | ######"" # # ## ###??????## #??? #?? | | #????#""### #? ###???????## #??? #?? | | #????#""#?######?????????# ##??? ##?? | | ?????#""#???????????????## ##???? #??? | | #????#""#???????????????# #????? ##??? | | #?????""????????????????# #????? #???? | | #???????????????????????# ##????? #???? | | ????????????????????????# #??????# ##??? | | ???????????????????????## ##????## #??? | | ??????????????????????## ##??## #??? | | ??????????????????????# ##?# #??? | | ??????????????????##### ## ### #??? | | ?????????????????## # #### ## #??? | | ?????????????????# #?## ## #??? | | ?????????????????# ##?# ## ##??? | | ?????????????????# ## #?## #???? | | ##???????????????####?# #??### ##???? | | #???????????????????? ##????######????? | | #????????????????????####???????????????? | +----------------------------------------------------+ Best States ------------- Heat Dissipation 54 Energy Generation 38 Energy Capacity 515 Matter Stores 300 Matter Capacity 300 Sight Range 16 Robot Scan Range 15 Terrain Scan Density 10 Additional Mass Support 6 Corruption Containment 8 Armor Coverage 160 Resistance: KI 25 Resistance: TH 20 Point Defense Rating 80 Evasion (%) 63 Targeting Accuracy 8 Recoil Reduction 1 Particle Charging 20 Item Schematics ----------------- None Robot Schematics ------------------ None Fabricated ------------ Nothing Alien Tech Used ----------------- None Achievements -------------- A Powerful Ally? Librarian Challenges ------------ None Game ------ Seed NavigationCompactAutocannon Manual? 0 Play Time 01:27:26 Cumulative 10.2 hours Start 2024.09.19 @ 19:03:08 End 2024.09.19 @ 22:34:43 Sessions 1 Manual Loads 0 Difficulty Rogue Special Mode None Game No. 11 Rogue 11 Adventurer 0 Explorer 0 Win Type - Total 0 Types 0/0/0/0/0/0/0/0/0 Lore% 5 Gallery% 18 Achievement% 16 Wizard Run 0 Options --------- Layout 1 ASCII 0 Keyboard 0 Movement Mouse Keybinds 0 Fullscreen 1 Font 24/Smallcaps Map View 50x35 Zoom Use 0% Tactical HUD 0 Map Filters NONE Filters NONE Steam 1 RUN: ec594381-e969-4626-8b10-14c2be4c38ca